[Event "Titled Tuesday Blitz May 23 Early 2023"]
[White "Buscar, Michael"]
[Black "Winkels, Marcel"]
[WhiteFideId "2603616"]
[BlackFideId "1003887"]
[WhiteElo "2010"]
[BlackElo "1900"]
[Result "1-0"]
[Round "06"]
[TimeControl "180+2"]
[Date "2023.05.23"]
[WhiteClock "0:00:27"]
[BlackClock "0:00:00"]

1. Nf3 {[%clk 0:02:53]}  Nf6 {[%clk 0:02:58]} 2. b3 {[%clk 0:02:51]}  g6 {[%clk 0:02:55]} 3. Bb2 {[%clk 0:02:50]}  Bg7 {[%clk 0:02:56]} 4. e4 {[%clk 0:02:50]}  d6 {[%clk 0:02:52]} 5. Bc4 {[%clk 0:02:49]}  O-O {[%clk 0:02:50]} 6. Qe2 {[%clk 0:02:50]}  c6 {[%clk 0:02:46]} 7. O-O {[%clk 0:02:46]}  Bg4 {[%clk 0:02:43]} 8. h3 {[%clk 0:02:45]}  Bxf3 {[%clk 0:02:43]} 9. Qxf3 {[%clk 0:02:45]}  Nbd7 {[%clk 0:02:44]} 10. d4 {[%clk 0:02:44]}  e5 {[%clk 0:02:40]} 11. Nd2 {[%clk 0:02:37]}  Re8 {[%clk 0:02:38]} 12. Rad1 {[%clk 0:02:35]}  Qe7 {[%clk 0:02:38]} 13. Rfe1 {[%clk 0:02:31]}  b5 {[%clk 0:02:37]} 14. Bf1 {[%clk 0:02:30]}  a5 {[%clk 0:02:36]} 15. c4 {[%clk 0:02:28]}  b4 {[%clk 0:02:30]} 16. Qg3 {[%clk 0:02:18]}  a4 {[%clk 0:02:27]} 17. Nf3 {[%clk 0:02:01]}  axb3 {[%clk 0:02:24]} 18. axb3 {[%clk 0:02:00]}  Ra2 {[%clk 0:02:24]} 19. Ba1 {[%clk 0:01:50]}  Nh5 {[%clk 0:02:23]} 20. Qh2 {[%clk 0:01:46]}  Rea8 {[%clk 0:02:09]} 21. c5 {[%clk 0:01:44]}  dxc5 {[%clk 0:01:55]} 22. dxe5 {[%clk 0:01:43]}  Bh6 {[%clk 0:01:39]} 23. Bc4 {[%clk 0:01:33]}  Nf8 {[%clk 0:01:38]} 24. e6 {[%clk 0:01:30]}  Nxe6 {[%clk 0:01:32]} 25. Be5 {[%clk 0:01:29]}  Bf4 {[%clk 0:01:17]} 26. Bxf4 {[%clk 0:01:18]}  Nhxf4 {[%clk 0:01:09]} 27. Ne5 {[%clk 0:01:18]}  g5 {[%clk 0:00:58]} 28. Rd7 {[%clk 0:01:09]}  Qf6 {[%clk 0:00:44]} 29. Nxf7 {[%clk 0:01:06]}  R2a7 {[%clk 0:00:32]} 30. Rxa7 {[%clk 0:00:57]}  Rxa7 {[%clk 0:00:31]} 31. Nd6 {[%clk 0:00:57]}  Kh8 {[%clk 0:00:20]} 32. Qg3 {[%clk 0:00:52]}  Nd4 {[%clk 0:00:19]} 33. e5 {[%clk 0:00:47]}  Qg7 {[%clk 0:00:17]} 34. Ne4 {[%clk 0:00:40]}  Ra2 {[%clk 0:00:15]} 35. Qxg5 {[%clk 0:00:34]}  Qxg5 {[%clk 0:00:12]} 36. Nxg5 {[%clk 0:00:34]}  Nfe2+ {[%clk 0:00:11]} 37. Kh2 {[%clk 0:00:32]}  Kg7 {[%clk 0:00:09]} 38. e6 {[%clk 0:00:29]}  Kf6 {[%clk 0:00:09]} 39. Ne4+ {[%clk 0:00:28]}  Ke7 {[%clk 0:00:09]} 40. Nxc5 {[%clk 0:00:29]}  Rb2 {[%clk 0:00:07]} 41. Nd3 {[%clk 0:00:28]}  Rd2 {[%clk 0:00:06]} 42. Nxb4 {[%clk 0:00:28]}  Nc2 {[%clk 0:00:05]} 43. Nxc2 {[%clk 0:00:27]}  Rxc2 {[%clk 0:00:00]} 44. Rxe2 {[%clk 0:00:27]} 1-0


[Site "https://www.chess.com"]

[Event "Titled Tuesday Blitz May 23 Early 2023"]
[White "Sanudula, K M Dahamdi"]
[Black "Goldin, Roman"]
[WhiteFideId "9932470"]
[BlackFideId "2803860"]
[WhiteElo "1556"]
[BlackElo "2312"]
[Result "0-1"]
[Round "06"]
[TimeControl "180+2"]
[Date "2023.05.23"]
[WhiteClock "0:01:04"]
[BlackClock "0:01:39"]

1. d4 {[%clk 0:02:35]}  Nf6 {[%clk 0:02:59]} 2. e3 {[%clk 0:02:33]}  g6 {[%clk 0:02:57]} 3. Bd3 {[%clk 0:02:34]}  Bg7 {[%clk 0:02:57]} 4. f4 {[%clk 0:02:34]}  O-O {[%clk 0:02:58]} 5. c3 {[%clk 0:02:35]}  d6 {[%clk 0:02:58]} 6. Nd2 {[%clk 0:02:35]}  c5 {[%clk 0:02:59]} 7. Ngf3 {[%clk 0:02:36]}  Nc6 {[%clk 0:02:58]} 8. O-O {[%clk 0:02:36]}  e5 {[%clk 0:02:55]} 9. e4 {[%clk 0:02:16]}  cxd4 {[%clk 0:02:50]} 10. cxd4 {[%clk 0:02:15]}  exd4 {[%clk 0:02:43]} 11. Nb3 {[%clk 0:02:13]}  Ng4 {[%clk 0:02:43]} 12. h3 {[%clk 0:02:08]}  Ne3 {[%clk 0:02:42]} 13. Bxe3 {[%clk 0:02:07]}  dxe3 {[%clk 0:02:43]} 14. Qe2 {[%clk 0:02:06]}  Re8 {[%clk 0:02:40]} 15. Rab1 {[%clk 0:02:02]}  d5 {[%clk 0:02:07]} 16. Qxe3 {[%clk 0:01:38]}  dxe4 {[%clk 0:02:03]} 17. Bxe4 {[%clk 0:01:38]}  Bf5 {[%clk 0:01:48]} 18. Nfd2 {[%clk 0:01:28]}  Bxe4 {[%clk 0:01:46]} 19. Nxe4 {[%clk 0:01:27]}  f5 {[%clk 0:01:46]} 20. Rbd1 {[%clk 0:01:26]}  Qe7 {[%clk 0:01:43]} 21. Qc5 {[%clk 0:01:07]}  fxe4 {[%clk 0:01:39]} 22. Qd5+ {[%clk 0:01:04]} 0-1


[Site "https://www.chess.com"]

[Event "Titled Tuesday Blitz May 23 Early 2023"]
[White "Blackwhite017"]
[Black "Zampronha, Wladimir Camilo"]
[BlackFideId "2103087"]
[WhiteElo "2074"]
[BlackElo "2176"]
[Result "1/2-1/2"]
[Round "06"]
[TimeControl "180+2"]
[Date "2023.05.23"]
[WhiteClock "0:00:16"]
[BlackClock "0:01:20"]

1. e4 {[%clk 0:03:00]}  c5 {[%clk 0:02:59]} 2. Nf3 {[%clk 0:02:55]}  e6 {[%clk 0:02:59]} 3. d4 {[%clk 0:02:52]}  cxd4 {[%clk 0:03:00]} 4. Nxd4 {[%clk 0:02:53]}  Nc6 {[%clk 0:03:01]} 5. Nxc6 {[%clk 0:02:52]}  bxc6 {[%clk 0:03:00]} 6. Bd3 {[%clk 0:02:50]}  Nf6 {[%clk 0:03:00]} 7. O-O {[%clk 0:02:43]}  d6 {[%clk 0:02:57]} 8. Qe2 {[%clk 0:02:37]}  Be7 {[%clk 0:02:57]} 9. e5 {[%clk 0:02:36]}  dxe5 {[%clk 0:02:52]} 10. Qxe5 {[%clk 0:02:34]}  Qd5 {[%clk 0:02:51]} 11. Bf4 {[%clk 0:02:24]}  O-O {[%clk 0:02:49]} 12. Nc3 {[%clk 0:02:23]}  Qxe5 {[%clk 0:02:49]} 13. Bxe5 {[%clk 0:02:23]}  Nd5 {[%clk 0:02:47]} 14. Ne4 {[%clk 0:02:07]}  f6 {[%clk 0:02:46]} 15. Bg3 {[%clk 0:01:32]}  e5 {[%clk 0:02:44]} 16. h3 {[%clk 0:01:21]}  Rb8 {[%clk 0:02:43]} 17. b3 {[%clk 0:01:17]}  Rd8 {[%clk 0:02:39]} 18. Rad1 {[%clk 0:01:16]}  Be6 {[%clk 0:02:32]} 19. Rfe1 {[%clk 0:01:10]}  Nb4 {[%clk 0:02:30]} 20. f4 {[%clk 0:00:58]}  f5 {[%clk 0:02:11]} 21. Ng5 {[%clk 0:00:52]}  Bxg5 {[%clk 0:02:09]} 22. fxg5 {[%clk 0:00:51]}  f4 {[%clk 0:01:51]} 23. Bxf4 {[%clk 0:00:49]}  Nxd3 {[%clk 0:01:51]} 24. cxd3 {[%clk 0:00:21]}  Bxb3 {[%clk 0:01:45]} 25. Bxe5 {[%clk 0:00:20]}  Bxd1 {[%clk 0:01:45]} 26. Bxb8 {[%clk 0:00:20]}  Rxb8 {[%clk 0:01:43]} 27. Rxd1 {[%clk 0:00:20]}  Rb2 {[%clk 0:01:36]} 28. Rc1 {[%clk 0:00:20]}  Rxa2 {[%clk 0:01:32]} 29. Rxc6 {[%clk 0:00:20]}  a5 {[%clk 0:01:31]} 30. Rc7 {[%clk 0:00:20]}  a4 {[%clk 0:01:31]} 31. Ra7 {[%clk 0:00:19]}  a3 {[%clk 0:01:31]} 32. d4 {[%clk 0:00:20]}  Ra1+ {[%clk 0:01:23]} 33. Kh2 {[%clk 0:00:19]}  a2 {[%clk 0:01:24]} 34. d5 {[%clk 0:00:19]}  Kf8 {[%clk 0:01:22]} 35. d6 {[%clk 0:00:19]}  Ke8 {[%clk 0:01:22]} 36. h4 {[%clk 0:00:20]}  Kd8 {[%clk 0:01:21]} 37. h5 {[%clk 0:00:19]}  Kc8 {[%clk 0:01:21]} 38. h6 {[%clk 0:00:18]}  gxh6 {[%clk 0:01:20]} 39. gxh6 {[%clk 0:00:18]}  Kb8 {[%clk 0:01:20]} 40. Ra3 {[%clk 0:00:17]}  Kc8 {[%clk 0:01:19]} 41. Ra7 {[%clk 0:00:16]}  Kb8 {[%clk 0:01:19]} 42. Ra3 {[%clk 0:00:16]}  Kc8 {[%clk 0:01:20]} 43. Ra7 {[%clk 0:00:16]} 1/2-1/2


[Site "https://www.chess.com"]

[Event "Titled Tuesday Blitz May 23 Early 2023"]
[White "Jimenez Fernandez, Rebeca"]
[Black "Kriti Mayur Patel"]
[WhiteFideId "32070934"]
[BlackFideId "35061780"]
[WhiteElo "2008"]
[BlackElo "1306"]
[Result "0-1"]
[Round "06"]
[TimeControl "180+2"]
[Date "2023.05.23"]
[WhiteClock "0:00:00"]
[BlackClock "0:01:14"]

1. e4 {[%clk 0:03:00]}  e5 {[%clk 0:02:59]} 2. d4 {[%clk 0:03:01]}  exd4 {[%clk 0:02:59]} 3. Qxd4 {[%clk 0:03:01]}  Nc6 {[%clk 0:02:58]} 4. Qe3 {[%clk 0:03:02]}  Nf6 {[%clk 0:02:57]} 5. Nc3 {[%clk 0:03:02]}  Bb4 {[%clk 0:02:57]} 6. Bd2 {[%clk 0:03:02]}  O-O {[%clk 0:02:58]} 7. O-O-O {[%clk 0:03:02]}  Re8 {[%clk 0:02:58]} 8. Bc4 {[%clk 0:03:02]}  Ne5 {[%clk 0:02:55]} 9. Bb3 {[%clk 0:03:00]}  d6 {[%clk 0:02:53]} 10. h3 {[%clk 0:02:55]}  Ng6 {[%clk 0:02:52]} 11. f3 {[%clk 0:02:45]}  c6 {[%clk 0:02:41]} 12. g4 {[%clk 0:02:41]}  d5 {[%clk 0:02:40]} 13. Qf2 {[%clk 0:02:27]}  dxe4 {[%clk 0:02:35]} 14. fxe4 {[%clk 0:02:23]}  Qe7 {[%clk 0:02:33]} 15. Nge2 {[%clk 0:01:58]}  Be6 {[%clk 0:02:18]} 16. Bxe6 {[%clk 0:01:54]}  Qxe6 {[%clk 0:02:17]} 17. Nd4 {[%clk 0:01:43]}  Qe5 {[%clk 0:02:07]} 18. Rhe1 {[%clk 0:01:03]}  Bxc3 {[%clk 0:01:56]} 19. Bxc3 {[%clk 0:01:02]}  Nxe4 {[%clk 0:01:56]} 20. Qf3 {[%clk 0:00:34]}  Qg5+ {[%clk 0:01:49]} 21. Kb1 {[%clk 0:00:27]}  Nxc3+ {[%clk 0:01:48]} 22. Qxc3 {[%clk 0:00:28]}  Rad8 {[%clk 0:01:39]} 23. Nf5 {[%clk 0:00:25]}  Rxd1+ {[%clk 0:01:35]} 24. Rxd1 {[%clk 0:00:25]}  Ne5 {[%clk 0:01:32]} 25. Nd6 {[%clk 0:00:15]}  Rd8 {[%clk 0:01:29]} 26. a3 {[%clk 0:00:06]}  Qf6 {[%clk 0:01:28]} 27. Re1 {[%clk 0:00:03]}  Qxd6 {[%clk 0:01:19]} 28. Rxe5 {[%clk 0:00:03]}  Qf6 {[%clk 0:01:17]} 29. Qe3 {[%clk 0:00:03]}  Rd1+ {[%clk 0:01:15]} 30. Ka2 {[%clk 0:00:03]}  g6 {[%clk 0:01:15]} 31. Re8+ {[%clk 0:00:03]}  Kg7 {[%clk 0:01:16]} 32. Rb8 {[%clk 0:00:02]}  Rd7 {[%clk 0:01:15]} 33. Qe8 {[%clk 0:00:00]}  Kh6 {[%clk 0:01:14]} 0-1


[Site "https://www.chess.com"]

[Event "Titled Tuesday Blitz May 23 Early 2023"]
[White "Begunov, Konstantin"]
[Black "Putri, Regita Desyari"]
[WhiteFideId "4118510"]
[BlackFideId "7109083"]
[WhiteElo "2050"]
[BlackElo "1930"]
[Result "1-0"]
[Round "06"]
[TimeControl "180+2"]
[Date "2023.05.23"]
[WhiteClock "0:02:23"]
[BlackClock "0:00:06"]

1. d4 {[%clk 0:03:00]}  Nf6 {[%clk 0:02:59]} 2. c4 {[%clk 0:03:01]}  e6 {[%clk 0:02:59]} 3. Nf3 {[%clk 0:03:01]}  b6 {[%clk 0:02:59]} 4. g3 {[%clk 0:03:01]}  Ba6 {[%clk 0:02:58]} 5. Qa4 {[%clk 0:03:00]}  Bb7 {[%clk 0:02:55]} 6. Bg2 {[%clk 0:03:00]}  c5 {[%clk 0:02:51]} 7. dxc5 {[%clk 0:03:01]}  Bxc5 {[%clk 0:02:51]} 8. Nc3 {[%clk 0:03:01]}  O-O {[%clk 0:02:50]} 9. O-O {[%clk 0:03:01]}  Qe7 {[%clk 0:02:40]} 10. a3 {[%clk 0:02:58]}  a5 {[%clk 0:02:39]} 11. Rd1 {[%clk 0:02:58]}  Nc6 {[%clk 0:02:28]} 12. Qc2 {[%clk 0:02:53]}  Rfd8 {[%clk 0:02:23]} 13. Na4 {[%clk 0:02:49]}  d5 {[%clk 0:02:18]} 14. cxd5 {[%clk 0:02:47]}  exd5 {[%clk 0:02:19]} 15. Bg5 {[%clk 0:02:24]}  Rac8 {[%clk 0:00:46]} 16. Nxc5 {[%clk 0:02:22]}  Qxc5 {[%clk 0:00:11]} 17. Qxc5 {[%clk 0:02:22]}  b5 {[%clk 0:00:06]} 18. Bxf6 {[%clk 0:02:23]} 1-0


[Site "https://www.chess.com"]

[Event "Titled Tuesday Blitz May 23 Early 2023"]
[White "Sokolov, Andrei"]
[Black "Aanna12"]
[WhiteFideId "11600306"]
[WhiteElo "2473"]
[BlackElo "2207"]
[Result "1-0"]
[Round "06"]
[TimeControl "180+2"]
[Date "2023.05.23"]
[WhiteClock "0:00:15"]
[BlackClock "0:00:51"]

1. d4 {[%clk 0:03:00]}  Nf6 {[%clk 0:02:58]} 2. c4 {[%clk 0:03:00]}  c5 {[%clk 0:02:58]} 3. d5 {[%clk 0:02:56]}  b5 {[%clk 0:02:57]} 4. cxb5 {[%clk 0:02:56]}  a6 {[%clk 0:02:56]} 5. bxa6 {[%clk 0:02:55]}  g6 {[%clk 0:02:56]} 6. Nc3 {[%clk 0:02:42]}  Bg7 {[%clk 0:02:56]} 7. g3 {[%clk 0:02:35]}  O-O {[%clk 0:02:55]} 8. Bg2 {[%clk 0:02:33]}  d6 {[%clk 0:02:55]} 9. Nf3 {[%clk 0:02:32]}  Nbd7 {[%clk 0:02:56]} 10. O-O {[%clk 0:02:31]}  Nb6 {[%clk 0:02:50]} 11. Nd2 {[%clk 0:02:11]}  Bxa6 {[%clk 0:02:47]} 12. Rb1 {[%clk 0:02:06]}  Bb7 {[%clk 0:02:46]} 13. e4 {[%clk 0:01:54]}  Ba6 {[%clk 0:02:45]} 14. Re1 {[%clk 0:01:52]}  Nfd7 {[%clk 0:02:42]} 15. Qc2 {[%clk 0:01:49]}  Ne5 {[%clk 0:02:42]} 16. Bf1 {[%clk 0:01:44]}  c4 {[%clk 0:02:40]} 17. b3 {[%clk 0:01:15]}  Nd3 {[%clk 0:02:34]} 18. Rd1 {[%clk 0:01:09]}  Bd4 {[%clk 0:02:31]} 19. Nxc4 {[%clk 0:00:51]}  Nxc4 {[%clk 0:01:58]} 20. bxc4 {[%clk 0:00:37]}  Ne5 {[%clk 0:01:38]} 21. Nb5 {[%clk 0:00:20]}  Bc5 {[%clk 0:01:35]} 22. a4 {[%clk 0:00:18]}  Bxb5 {[%clk 0:01:32]} 23. axb5 {[%clk 0:00:17]}  Qa5 {[%clk 0:01:18]} 24. Bb2 {[%clk 0:00:16]}  Qa2 {[%clk 0:00:51]} 25. Ra1 {[%clk 0:00:15]} 1-0


[Site "https://www.chess.com"]

[Event "Titled Tuesday Blitz May 23 Early 2023"]
[White "Kostiukov, Alexandr"]
[Black "Cramling Bellon, Anna"]
[WhiteFideId "14108100"]
[BlackFideId "32009232"]
[WhiteElo "2202"]
[BlackElo "1976"]
[Result "0-1"]
[Round "06"]
[TimeControl "180+2"]
[Date "2023.05.23"]
[WhiteClock "0:00:00"]
[BlackClock "0:00:04"]

1. e4 {[%clk 0:02:56]}  c5 {[%clk 0:02:59]} 2. Nf3 {[%clk 0:02:53]}  e6 {[%clk 0:02:57]} 3. d4 {[%clk 0:02:47]}  cxd4 {[%clk 0:02:58]} 4. Nxd4 {[%clk 0:02:45]}  Nf6 {[%clk 0:02:58]} 5. Nc3 {[%clk 0:02:42]}  Nc6 {[%clk 0:02:56]} 6. Be3 {[%clk 0:02:36]}  Bb4 {[%clk 0:02:51]} 7. f3 {[%clk 0:02:14]}  d5 {[%clk 0:02:46]} 8. Nxc6 {[%clk 0:02:05]}  bxc6 {[%clk 0:02:44]} 9. Qd4 {[%clk 0:01:38]}  c5 {[%clk 0:02:24]} 10. Qe5 {[%clk 0:01:20]}  d4 {[%clk 0:02:17]} 11. O-O-O {[%clk 0:01:20]}  Bxc3 {[%clk 0:02:09]} 12. bxc3 {[%clk 0:01:16]}  Qa5 {[%clk 0:02:01]} 13. cxd4 {[%clk 0:01:00]}  Qa3+ {[%clk 0:01:15]} 14. Kd2 {[%clk 0:00:58]}  Qb4+ {[%clk 0:01:15]} 15. Ke2 {[%clk 0:00:52]}  Ba6+ {[%clk 0:01:14]} 16. Kf2 {[%clk 0:00:53]}  Bb7 {[%clk 0:00:24]} 17. dxc5 {[%clk 0:00:34]}  Bxe4 {[%clk 0:00:19]} 18. fxe4 {[%clk 0:00:27]}  Ng4+ {[%clk 0:00:19]} 19. Kg3 {[%clk 0:00:22]}  Nxe5 {[%clk 0:00:19]} 20. Rb1 {[%clk 0:00:22]}  Qxb1 {[%clk 0:00:18]} 21. h3 {[%clk 0:00:16]}  Qe1+ {[%clk 0:00:18]} 22. Bf2 {[%clk 0:00:15]}  Qxe4 {[%clk 0:00:18]} 23. Kh2 {[%clk 0:00:16]}  Qf4+ {[%clk 0:00:18]} 24. Bg3 {[%clk 0:00:16]}  Qf6 {[%clk 0:00:17]} 25. Bb5+ {[%clk 0:00:16]}  Ke7 {[%clk 0:00:16]} 26. Re1 {[%clk 0:00:14]}  Nd7 {[%clk 0:00:10]} 27. Bd6+ {[%clk 0:00:13]}  Kd8 {[%clk 0:00:10]} 28. c6 {[%clk 0:00:13]}  Nb6 {[%clk 0:00:07]} 29. c7+ {[%clk 0:00:12]}  Kc8 {[%clk 0:00:03]} 30. Ba6+ {[%clk 0:00:12]}  Kd7 {[%clk 0:00:04]} 31. Rd1 {[%clk 0:00:10]}  Nd5 {[%clk 0:00:04]} 32. Bg3 {[%clk 0:00:05]}  Rhc8 {[%clk 0:00:04]} 33. Bb5+ {[%clk 0:00:05]}  Ke7 {[%clk 0:00:04]} 34. c4 {[%clk 0:00:04]}  Rxc7 {[%clk 0:00:02]} 35. cxd5 {[%clk 0:00:04]}  Rc5 {[%clk 0:00:02]} 36. d6+ {[%clk 0:00:04]}  Kd8 {[%clk 0:00:02]} 37. Bf1 {[%clk 0:00:03]}  Rf5 {[%clk 0:00:01]} 38. Be2 {[%clk 0:00:02]}  Re5 {[%clk 0:00:02]} 39. Bf3 {[%clk 0:00:03]}  Rb8 {[%clk 0:00:01]} 40. Rc1 {[%clk 0:00:02]}  Rd5 {[%clk 0:00:01]} 41. Bxd5 {[%clk 0:00:02]}  exd5 {[%clk 0:00:02]} 42. Re1 {[%clk 0:00:03]}  Kd7 {[%clk 0:00:02]} 43. Rc1 {[%clk 0:00:02]}  Qxd6 {[%clk 0:00:02]} 44. Bxd6 {[%clk 0:00:01]}  Kxd6 {[%clk 0:00:02]} 45. Rf1 {[%clk 0:00:01]}  Rb7 {[%clk 0:00:02]} 46. Rf5 {[%clk 0:00:01]}  f6 {[%clk 0:00:03]} 47. Rf2 {[%clk 0:00:02]}  h6 {[%clk 0:00:03]} 48. Rc2 {[%clk 0:00:02]}  Rc7 {[%clk 0:00:03]} 49. Kg1 {[%clk 0:00:00]}  Rxc2 {[%clk 0:00:04]} 0-1


[Site "https://www.chess.com"]

[Event "Titled Tuesday Blitz May 23 Early 2023"]
[White "Hon, Eric"]
[Black "Lohani, Sujana"]
[WhiteFideId "2097117"]
[BlackFideId "12311987"]
[WhiteElo "1918"]
[BlackElo "1718"]
[Result "1-0"]
[Round "06"]
[TimeControl "180+2"]
[Date "2023.05.23"]
[WhiteClock "0:00:25"]
[BlackClock "0:00:00"]

1. e4 {[%clk 0:03:00]}  c6 {[%clk 0:02:35]} 2. d4 {[%clk 0:03:00]}  d5 {[%clk 0:02:31]} 3. f3 {[%clk 0:02:50]}  dxe4 {[%clk 0:02:27]} 4. fxe4 {[%clk 0:02:51]}  Nf6 {[%clk 0:02:10]} 5. Nf3 {[%clk 0:02:47]}  Nxe4 {[%clk 0:01:43]} 6. Bc4 {[%clk 0:02:45]}  e6 {[%clk 0:01:36]} 7. O-O {[%clk 0:02:43]}  Be7 {[%clk 0:01:27]} 8. c3 {[%clk 0:02:16]}  O-O {[%clk 0:01:24]} 9. Nbd2 {[%clk 0:02:11]}  Nd6 {[%clk 0:01:12]} 10. Bd3 {[%clk 0:02:10]}  Nd7 {[%clk 0:01:04]} 11. b3 {[%clk 0:02:04]}  Nf6 {[%clk 0:01:03]} 12. Bb2 {[%clk 0:02:04]}  b6 {[%clk 0:00:52]} 13. Qc2 {[%clk 0:01:59]}  h6 {[%clk 0:00:50]} 14. Ne5 {[%clk 0:01:59]}  c5 {[%clk 0:00:48]} 15. dxc5 {[%clk 0:01:39]}  bxc5 {[%clk 0:00:47]} 16. Nc6 {[%clk 0:01:37]}  Qc7 {[%clk 0:00:46]} 17. Nxe7+ {[%clk 0:01:36]}  Qxe7 {[%clk 0:00:46]} 18. Rad1 {[%clk 0:01:35]}  Bb7 {[%clk 0:00:45]} 19. c4 {[%clk 0:01:33]}  e5 {[%clk 0:00:43]} 20. Rfe1 {[%clk 0:01:27]}  e4 {[%clk 0:00:40]} 21. Bxf6 {[%clk 0:01:16]}  Qxf6 {[%clk 0:00:40]} 22. Nxe4 {[%clk 0:01:13]}  Nxe4 {[%clk 0:00:27]} 23. Bxe4 {[%clk 0:01:13]}  Bxe4 {[%clk 0:00:25]} 24. Rxe4 {[%clk 0:01:14]}  Rad8 {[%clk 0:00:24]} 25. Rf1 {[%clk 0:01:04]}  Qg6 {[%clk 0:00:17]} 26. Re2 {[%clk 0:01:02]}  Qg5 {[%clk 0:00:16]} 27. h3 {[%clk 0:01:01]}  Rfe8 {[%clk 0:00:14]} 28. Ref2 {[%clk 0:00:58]}  Re7 {[%clk 0:00:12]} 29. Qf5 {[%clk 0:00:57]}  Qxf5 {[%clk 0:00:12]} 30. Rxf5 {[%clk 0:00:58]}  Rd2 {[%clk 0:00:11]} 31. R1f2 {[%clk 0:00:45]}  Rd1+ {[%clk 0:00:05]} 32. Kh2 {[%clk 0:00:43]}  f6 {[%clk 0:00:04]} 33. Rxc5 {[%clk 0:00:38]}  Ree1 {[%clk 0:00:03]} 34. Rc7 {[%clk 0:00:28]}  Rh1+ {[%clk 0:00:02]} 35. Kg3 {[%clk 0:00:28]}  Rd3+ {[%clk 0:00:02]} 36. Rf3 {[%clk 0:00:28]}  Rxf3+ {[%clk 0:00:01]} 37. Kxf3 {[%clk 0:00:28]}  Ra1 {[%clk 0:00:01]} 38. Rxa7 {[%clk 0:00:27]}  Kh7 {[%clk 0:00:01]} 39. c5 {[%clk 0:00:25]}  Kg6 {[%clk 0:00:01]} 40. c6 {[%clk 0:00:25]}  Rc1 {[%clk 0:00:00]} 41. c7 {[%clk 0:00:25]} 1-0


[Site "https://www.chess.com"]